[Event "Titled Tuesday Blitz June 21 Late 2022"]
[White "Ibarra Jerez, Jose Carlos"]
[Black "Richter, Nils"]
[WhiteFideId "2226332"]
[BlackFideId "12990809"]
[WhiteElo "2628"]
[BlackElo "2311"]
[Result "1-0"]
[Round "01"]
[TimeControl "180+1"]
[Date "2022.06.21"]
[WhiteClock "0:00:21"]
[BlackClock "0:00:02"]

1. e4 {[%clk 0:02:57]}  e5 {[%clk 0:02:39]} 2. Nf3 {[%clk 0:02:55]}  Nf6 {[%clk 0:02:37]} 3. Nxe5 {[%clk 0:02:52]}  Nxe4 {[%clk 0:02:36]} 4. Qe2 {[%clk 0:02:52]}  Qe7 {[%clk 0:02:27]} 5. Qxe4 {[%clk 0:02:51]}  d6 {[%clk 0:02:27]} 6. d4 {[%clk 0:02:52]}  dxe5 {[%clk 0:02:27]} 7. dxe5 {[%clk 0:02:53]}  Nc6 {[%clk 0:02:26]} 8. Nc3 {[%clk 0:02:53]}  Qb4 {[%clk 0:02:21]} 9. Bb5 {[%clk 0:02:42]}  Bd7 {[%clk 0:02:17]} 10. O-O {[%clk 0:02:20]}  Qxe4 {[%clk 0:02:14]} 11. Nxe4 {[%clk 0:02:19]}  Nxe5 {[%clk 0:02:14]} 12. Bxd7+ {[%clk 0:02:16]}  Nxd7 {[%clk 0:02:15]} 13. Re1 {[%clk 0:02:14]}  O-O-O {[%clk 0:02:15]} 14. Ng5 {[%clk 0:02:14]}  Ne5 {[%clk 0:02:03]} 15. Bf4 {[%clk 0:02:11]}  h6 {[%clk 0:01:51]} 16. Rxe5 {[%clk 0:02:02]}  hxg5 {[%clk 0:01:50]} 17. Rxg5 {[%clk 0:02:01]}  g6 {[%clk 0:01:48]} 18. Rb5 {[%clk 0:01:54]}  Bg7 {[%clk 0:01:37]} 19. g3 {[%clk 0:01:44]}  Rhe8 {[%clk 0:01:32]} 20. Kf1 {[%clk 0:01:42]}  c6 {[%clk 0:01:31]} 21. Rb3 {[%clk 0:01:42]}  Rd5 {[%clk 0:01:26]} 22. Re1 {[%clk 0:01:40]}  Rxe1+ {[%clk 0:01:17]} 23. Kxe1 {[%clk 0:01:41]}  g5 {[%clk 0:01:16]} 24. Be3 {[%clk 0:01:41]}  g4 {[%clk 0:01:13]} 25. Ke2 {[%clk 0:01:24]}  Rh5 {[%clk 0:01:07]} 26. Bxa7 {[%clk 0:01:19]}  Ra5 {[%clk 0:01:06]} 27. Ra3 {[%clk 0:01:08]}  Rh5 {[%clk 0:01:03]} 28. c3 {[%clk 0:00:59]}  Rxh2 {[%clk 0:01:00]} 29. Bb6 {[%clk 0:00:59]}  Be5 {[%clk 0:00:48]} 30. Ra8+ {[%clk 0:00:58]}  Kd7 {[%clk 0:00:48]} 31. Rg8 {[%clk 0:00:54]}  f5 {[%clk 0:00:48]} 32. a4 {[%clk 0:00:47]}  Bxg3 {[%clk 0:00:46]} 33. Rg7+ {[%clk 0:00:46]}  Ke6 {[%clk 0:00:46]} 34. Rxb7 {[%clk 0:00:44]}  Bxf2 {[%clk 0:00:45]} 35. Bxf2 {[%clk 0:00:44]}  g3 {[%clk 0:00:45]} 36. Kf3 {[%clk 0:00:45]}  gxf2 {[%clk 0:00:31]} 37. Ke2 {[%clk 0:00:45]}  Rh4 {[%clk 0:00:29]} 38. Rb4 {[%clk 0:00:41]}  Rh2 {[%clk 0:00:21]} 39. a5 {[%clk 0:00:40]}  Kd5 {[%clk 0:00:20]} 40. a6 {[%clk 0:00:40]}  Rh8 {[%clk 0:00:15]} 41. Kxf2 {[%clk 0:00:40]}  Ra8 {[%clk 0:00:14]} 42. Ra4 {[%clk 0:00:40]}  Kc5 {[%clk 0:00:15]} 43. Ke3 {[%clk 0:00:37]}  Kb5 {[%clk 0:00:14]} 44. Rb4+ {[%clk 0:00:37]}  Kc5 {[%clk 0:00:14]} 45. Ra4 {[%clk 0:00:33]}  Kb5 {[%clk 0:00:13]} 46. Rb4+ {[%clk 0:00:26]}  Kc5 {[%clk 0:00:13]} 47. Rf4 {[%clk 0:00:26]}  Rxa6 {[%clk 0:00:12]} 48. Kd3 {[%clk 0:00:26]}  Kb6 {[%clk 0:00:10]} 49. Rxf5 {[%clk 0:00:26]}  Ra8 {[%clk 0:00:11]} 50. Kc4 {[%clk 0:00:26]}  Rh8 {[%clk 0:00:11]} 51. Rf6 {[%clk 0:00:26]}  Rh4+ {[%clk 0:00:11]} 52. Kb3 {[%clk 0:00:27]}  Kb5 {[%clk 0:00:11]} 53. Rf5+ {[%clk 0:00:28]}  c5 {[%clk 0:00:11]} 54. Rf8 {[%clk 0:00:28]}  Rg4 {[%clk 0:00:11]} 55. Rb8+ {[%clk 0:00:28]}  Kc6 {[%clk 0:00:11]} 56. Rf8 {[%clk 0:00:25]}  Kb5 {[%clk 0:00:11]} 57. Rf5 {[%clk 0:00:25]}  Rh4 {[%clk 0:00:11]} 58. Rg5 {[%clk 0:00:24]}  Rf4 {[%clk 0:00:10]} 59. Ka3 {[%clk 0:00:25]}  Kb6 {[%clk 0:00:10]} 60. b3 {[%clk 0:00:23]}  Rh4 {[%clk 0:00:09]} 61. Rg6+ {[%clk 0:00:22]}  Kb5 {[%clk 0:00:07]} 62. c4+ {[%clk 0:00:22]}  Ka5 {[%clk 0:00:08]} 63. Rc6 {[%clk 0:00:21]}  Rh5 {[%clk 0:00:08]} 64. Rc8 {[%clk 0:00:19]}  Rg5 {[%clk 0:00:08]} 65. Rb8 {[%clk 0:00:20]}  Rh5 {[%clk 0:00:08]} 66. Rb5+ {[%clk 0:00:20]}  Ka6 {[%clk 0:00:08]} 67. Ka4 {[%clk 0:00:21]}  Rg5 {[%clk 0:00:03]} 68. b4 {[%clk 0:00:21]}  Rg1 {[%clk 0:00:02]} 69. Rxc5 {[%clk 0:00:18]}  Ra1+ {[%clk 0:00:02]} 70. Kb3 {[%clk 0:00:18]}  Rb1+ {[%clk 0:00:03]} 71. Kc3 {[%clk 0:00:19]}  Rc1+ {[%clk 0:00:03]} 72. Kb2 {[%clk 0:00:20]}  Rh1 {[%clk 0:00:03]} 73. Rc6+ {[%clk 0:00:20]}  Kb7 {[%clk 0:00:03]} 74. Rg6 {[%clk 0:00:21]}  Rh2+ {[%clk 0:00:03]} 75. Kb3 {[%clk 0:00:21]}  Rh1 {[%clk 0:00:04]} 76. Ka4 {[%clk 0:00:21]}  Rh5 {[%clk 0:00:03]} 77. c5 {[%clk 0:00:21]}  Rh1 {[%clk 0:00:04]} 78. Kb5 {[%clk 0:00:21]}  Rh5 {[%clk 0:00:04]} 79. Rg7+ {[%clk 0:00:21]}  Kb8 {[%clk 0:00:05]} 80. Kb6 {[%clk 0:00:21]}  Rxc5 {[%clk 0:00:01]} 81. bxc5 {[%clk 0:00:20]}  Kc8 {[%clk 0:00:01]} 82. c6 {[%clk 0:00:20]}  Kb8 {[%clk 0:00:02]} 83. Rg8# {[%clk 0:00:21]} 1-0


[Site "https://www.chess.com"]

[Event "Titled Tuesday Blitz June 21 Late 2022"]
[White "Isajevsky, Anton"]
[Black "Weisz, Bryan"]
[WhiteFideId "4142500"]
[BlackFideId "30934133"]
[WhiteElo "2510"]
[BlackElo "2235"]
[Result "1-0"]
[Round "01"]
[TimeControl "180+1"]
[Date "2022.06.22"]
[WhiteClock "0:00:05"]
[BlackClock "0:00:09"]

1. c4 {[%clk 0:03:00]}  Nf6 {[%clk 0:02:47]} 2. Nc3 {[%clk 0:02:59]}  e6 {[%clk 0:02:47]} 3. Nf3 {[%clk 0:02:56]}  c5 {[%clk 0:02:45]} 4. g3 {[%clk 0:02:52]}  d5 {[%clk 0:02:45]} 5. cxd5 {[%clk 0:02:51]}  exd5 {[%clk 0:02:46]} 6. d4 {[%clk 0:02:51]}  Nc6 {[%clk 0:02:45]} 7. Bg2 {[%clk 0:02:51]}  c4 {[%clk 0:02:38]} 8. O-O {[%clk 0:02:49]}  Bb4 {[%clk 0:02:33]} 9. Ne5 {[%clk 0:02:38]}  O-O {[%clk 0:02:20]} 10. Bg5 {[%clk 0:02:10]}  Bxc3 {[%clk 0:02:15]} 11. bxc3 {[%clk 0:02:08]}  Be6 {[%clk 0:02:12]} 12. Qa4 {[%clk 0:01:52]}  Nxe5 {[%clk 0:01:49]} 13. dxe5 {[%clk 0:01:52]}  h6 {[%clk 0:01:49]} 14. exf6 {[%clk 0:00:57]}  hxg5 {[%clk 0:01:48]} 15. fxg7 {[%clk 0:00:58]}  Kxg7 {[%clk 0:01:45]} 16. Rfd1 {[%clk 0:00:55]}  Qe8 {[%clk 0:01:13]} 17. Qb4 {[%clk 0:00:31]}  Qc6 {[%clk 0:01:12]} 18. Qe7 {[%clk 0:00:18]}  Kg6 {[%clk 0:01:08]} 19. e4 {[%clk 0:00:17]}  Rfe8 {[%clk 0:01:04]} 20. exd5 {[%clk 0:00:17]}  Bxd5 {[%clk 0:00:51]} 21. Bxd5 {[%clk 0:00:16]}  Qxd5 {[%clk 0:00:40]} 22. Qc7 {[%clk 0:00:15]}  Qf3 {[%clk 0:00:25]} 23. Qxc4 {[%clk 0:00:12]}  Rac8 {[%clk 0:00:25]} 24. Rd6+ {[%clk 0:00:10]}  f6 {[%clk 0:00:22]} 25. Qd4 {[%clk 0:00:08]}  Rxc3 {[%clk 0:00:16]} 26. Rf1 {[%clk 0:00:08]}  Rc6 {[%clk 0:00:15]} 27. Rd7 {[%clk 0:00:07]}  Rce6 {[%clk 0:00:14]} 28. Qc4 {[%clk 0:00:07]}  Qe4 {[%clk 0:00:13]} 29. Qb3 {[%clk 0:00:06]}  R6e7 {[%clk 0:00:13]} 30. Rxe7 {[%clk 0:00:05]}  Rxe7 {[%clk 0:00:14]} 31. Rc1 {[%clk 0:00:04]}  Qe6 {[%clk 0:00:12]} 32. Qc2+ {[%clk 0:00:03]}  Qf5 {[%clk 0:00:13]} 33. Qc4 {[%clk 0:00:03]}  Kg7 {[%clk 0:00:12]} 34. Kg2 {[%clk 0:00:02]}  b5 {[%clk 0:00:13]} 35. Qc3 {[%clk 0:00:02]}  Qe4+ {[%clk 0:00:13]} 36. Kg1 {[%clk 0:00:03]}  b4 {[%clk 0:00:13]} 37. Qc8 {[%clk 0:00:02]}  a5 {[%clk 0:00:13]} 38. Qb8 {[%clk 0:00:01]}  a4 {[%clk 0:00:12]} 39. Qd8 {[%clk 0:00:01]}  b3 {[%clk 0:00:12]} 40. axb3 {[%clk 0:00:02]}  axb3 {[%clk 0:00:13]} 41. Qb8 {[%clk 0:00:02]}  Qd3 {[%clk 0:00:12]} 42. Qb4 {[%clk 0:00:02]}  Rd7 {[%clk 0:00:11]} 43. Kg2 {[%clk 0:00:01]}  Qd5+ {[%clk 0:00:10]} 44. Kg1 {[%clk 0:00:01]}  Qf3 {[%clk 0:00:09]} 45. Qb8 {[%clk 0:00:01]}  Rd1+ {[%clk 0:00:10]} 46. Rxd1 {[%clk 0:00:01]}  Qxd1+ {[%clk 0:00:10]} 47. Kg2 {[%clk 0:00:02]}  Qd5+ {[%clk 0:00:11]} 48. Kg1 {[%clk 0:00:02]}  Qc4 {[%clk 0:00:11]} 49. Qb7+ {[%clk 0:00:02]}  Kg6 {[%clk 0:00:11]} 50. Qa8 {[%clk 0:00:02]}  b2 {[%clk 0:00:11]} 51. Qe8+ {[%clk 0:00:02]}  Kg7 {[%clk 0:00:11]} 52. Qe7+ {[%clk 0:00:02]}  Kg6 {[%clk 0:00:11]} 53. Qe8+ {[%clk 0:00:03]}  Kf5 {[%clk 0:00:11]} 54. Qd7+ {[%clk 0:00:03]}  Qe6 {[%clk 0:00:11]} 55. Qd3+ {[%clk 0:00:03]}  Qe4 {[%clk 0:00:11]} 56. Qb5+ {[%clk 0:00:03]}  Qe5 {[%clk 0:00:10]} 57. Qb3 {[%clk 0:00:04]}  Qe1+ {[%clk 0:00:09]} 58. Kg2 {[%clk 0:00:04]}  b1=Q {[%clk 0:00:10]} 59. Qd5+ {[%clk 0:00:04]}  Kg6 {[%clk 0:00:10]} 60. Qg8+ {[%clk 0:00:05]}  Kf5 {[%clk 0:00:10]} 61. Qd5+ {[%clk 0:00:05]}  Qe5 {[%clk 0:00:11]} 62. g4+ {[%clk 0:00:05]}  Kf4 {[%clk 0:00:09]} 63. Qf3# {[%clk 0:00:05]} 1-0


[Site "https://www.chess.com"]

[Event "Titled Tuesday Blitz June 21 Late 2022"]
[White "Janaszak, Dawid"]
[Black "Martynenko, Ivan"]
[WhiteFideId "1119206"]
[BlackFideId "2053179"]
[WhiteElo "2199"]
[BlackElo "2167"]
[Result "1-0"]
[Round "01"]
[TimeControl "180+1"]
[Date "2022.06.22"]
[WhiteClock "0:01:55"]
[BlackClock "0:00:18"]

1. e4 {[%clk 0:03:00]}  c5 {[%clk 0:02:59]} 2. Nc3 {[%clk 0:02:58]}  a6 {[%clk 0:02:59]} 3. d4 {[%clk 0:02:56]}  cxd4 {[%clk 0:02:59]} 4. Qxd4 {[%clk 0:02:57]}  Nc6 {[%clk 0:02:59]} 5. Qd2 {[%clk 0:02:57]}  d6 {[%clk 0:02:59]} 6. b3 {[%clk 0:02:57]}  g6 {[%clk 0:02:56]} 7. Bb2 {[%clk 0:02:56]}  Bg7 {[%clk 0:02:57]} 8. O-O-O {[%clk 0:02:54]}  Nf6 {[%clk 0:02:51]} 9. Kb1 {[%clk 0:02:53]}  O-O {[%clk 0:02:50]} 10. f3 {[%clk 0:02:52]}  Be6 {[%clk 0:02:35]} 11. Nge2 {[%clk 0:02:50]}  b5 {[%clk 0:02:27]} 12. Nf4 {[%clk 0:02:50]}  Ne5 {[%clk 0:01:53]} 13. h4 {[%clk 0:02:47]}  Rc8 {[%clk 0:01:43]} 14. h5 {[%clk 0:02:46]}  Qc7 {[%clk 0:01:38]} 15. hxg6 {[%clk 0:02:43]}  hxg6 {[%clk 0:01:37]} 16. g4 {[%clk 0:02:27]}  Nxf3 {[%clk 0:01:32]} 17. Qf2 {[%clk 0:02:25]}  Bxg4 {[%clk 0:01:30]} 18. Ncd5 {[%clk 0:02:22]}  Nxe4 {[%clk 0:01:09]} 19. Qg2 {[%clk 0:02:03]}  Qd7 {[%clk 0:00:50]} 20. Qxg4 {[%clk 0:01:59]}  Nfd2+ {[%clk 0:00:29]} 21. Kc1 {[%clk 0:01:59]}  Bxb2+ {[%clk 0:00:27]} 22. Kxb2 {[%clk 0:02:00]}  f5 {[%clk 0:00:18]} 23. Qxg6# {[%clk 0:01:55]} 1-0


[Site "https://www.chess.com"]

[Event "Titled Tuesday Blitz June 21 Late 2022"]
[White "Jian, Alex"]
[Black "Livaic, Leon"]
[WhiteFideId "30901022"]
[BlackFideId "14531534"]
[WhiteElo "2111"]
[BlackElo "2540"]
[Result "0-1"]
[Round "01"]
[TimeControl "180+1"]
[Date "2022.06.21"]
[WhiteClock "0:00:04"]
[BlackClock "0:00:44"]

1. g3 {[%clk 0:02:58]}  e5 {[%clk 0:02:55]} 2. Bg2 {[%clk 0:02:59]}  Nc6 {[%clk 0:02:55]} 3. b3 {[%clk 0:02:58]}  h5 {[%clk 0:02:56]} 4. h3 {[%clk 0:02:55]}  h4 {[%clk 0:02:55]} 5. g4 {[%clk 0:02:55]}  d5 {[%clk 0:02:55]} 6. Bb2 {[%clk 0:02:55]}  f5 {[%clk 0:02:56]} 7. gxf5 {[%clk 0:02:53]}  Bxf5 {[%clk 0:02:57]} 8. d3 {[%clk 0:02:49]}  Nf6 {[%clk 0:02:56]} 9. Nd2 {[%clk 0:02:46]}  Bc5 {[%clk 0:02:51]} 10. e3 {[%clk 0:02:45]}  Qd7 {[%clk 0:02:49]} 11. Ne2 {[%clk 0:02:44]}  g5 {[%clk 0:02:47]} 12. e4 {[%clk 0:02:27]}  dxe4 {[%clk 0:02:39]} 13. dxe4 {[%clk 0:02:26]}  Be6 {[%clk 0:02:39]} 14. Nf3 {[%clk 0:02:21]}  Qxd1+ {[%clk 0:02:15]} 15. Rxd1 {[%clk 0:02:12]}  Nxe4 {[%clk 0:02:09]} 16. Nxe5 {[%clk 0:01:46]}  Bxf2+ {[%clk 0:02:08]} 17. Kf1 {[%clk 0:01:46]}  O-O {[%clk 0:02:08]} 18. Bxe4 {[%clk 0:01:30]}  Bd4+ {[%clk 0:02:07]} 19. Kg2 {[%clk 0:01:12]}  Bxb2 {[%clk 0:01:18]} 20. Nxc6 {[%clk 0:01:09]}  bxc6 {[%clk 0:01:18]} 21. Bxc6 {[%clk 0:01:10]}  Rad8 {[%clk 0:01:18]} 22. c4 {[%clk 0:00:59]}  Be5 {[%clk 0:01:04]} 23. Bd5 {[%clk 0:00:54]}  Bxd5+ {[%clk 0:01:02]} 24. cxd5 {[%clk 0:00:47]}  Kg7 {[%clk 0:01:02]} 25. Nd4 {[%clk 0:00:37]}  Bxd4 {[%clk 0:00:59]} 26. Rxd4 {[%clk 0:00:38]}  Rf5 {[%clk 0:00:57]} 27. Rc1 {[%clk 0:00:36]}  Rd7 {[%clk 0:00:56]} 28. Rc2 {[%clk 0:00:30]}  Kg6 {[%clk 0:00:55]} 29. Rc6+ {[%clk 0:00:28]}  Rf6 {[%clk 0:00:55]} 30. Rxf6+ {[%clk 0:00:22]}  Kxf6 {[%clk 0:00:56]} 31. Kf3 {[%clk 0:00:22]}  Rd6 {[%clk 0:00:49]} 32. Rc4 {[%clk 0:00:14]}  Rxd5 {[%clk 0:00:47]} 33. Rxc7 {[%clk 0:00:13]}  Rd3+ {[%clk 0:00:47]} 34. Kg4 {[%clk 0:00:13]}  Rg3+ {[%clk 0:00:47]} 35. Kh5 {[%clk 0:00:13]}  Rxh3 {[%clk 0:00:40]} 36. Rc6+ {[%clk 0:00:12]}  Kf5 {[%clk 0:00:40]} 37. Rc5+ {[%clk 0:00:13]}  Kf4 {[%clk 0:00:41]} 38. Rxg5 {[%clk 0:00:12]}  Rg3 {[%clk 0:00:39]} 39. Ra5 {[%clk 0:00:07]}  h3 {[%clk 0:00:39]} 40. Ra4+ {[%clk 0:00:07]}  Kf3 {[%clk 0:00:39]} 41. Rh4 {[%clk 0:00:07]}  Kg2 {[%clk 0:00:40]} 42. b4 {[%clk 0:00:03]}  h2 {[%clk 0:00:40]} 43. a4 {[%clk 0:00:02]}  Rh3 {[%clk 0:00:40]} 44. Rxh3 {[%clk 0:00:02]}  Kxh3 {[%clk 0:00:41]} 45. b5 {[%clk 0:00:02]}  h1=Q {[%clk 0:00:42]} 46. a5 {[%clk 0:00:02]}  Qd5+ {[%clk 0:00:42]} 47. Kh6 {[%clk 0:00:02]}  Qxb5 {[%clk 0:00:43]} 48. a6 {[%clk 0:00:03]}  Qxa6+ {[%clk 0:00:43]} 49. Kg5 {[%clk 0:00:04]}  Qb5+ {[%clk 0:00:44]} 0-1


[Site "https://www.chess.com"]

[Event "Titled Tuesday Blitz June 21 Late 2022"]
[White "Kadric, Denis"]
[Black "Avazkhonov, Alikhon"]
[WhiteFideId "14403803"]
[BlackFideId "14208504"]
[WhiteElo "2779"]
[BlackElo "2447"]
[Result "1-0"]
[Round "01"]
[TimeControl "180+1"]
[Date "2022.06.22"]
[WhiteClock "0:00:20"]
[BlackClock "0:00:09"]

1. e4 {[%clk 0:03:00]}  c5 {[%clk 0:02:59]} 2. Nc3 {[%clk 0:03:00]}  d6 {[%clk 0:02:59]} 3. f4 {[%clk 0:03:00]}  Nf6 {[%clk 0:02:57]} 4. Nf3 {[%clk 0:02:59]}  a6 {[%clk 0:02:54]} 5. a4 {[%clk 0:02:55]}  e6 {[%clk 0:02:52]} 6. Bc4 {[%clk 0:02:53]}  Nc6 {[%clk 0:02:51]} 7. Ba2 {[%clk 0:02:53]}  Be7 {[%clk 0:02:49]} 8. O-O {[%clk 0:02:53]}  O-O {[%clk 0:02:49]} 9. d3 {[%clk 0:02:53]}  d5 {[%clk 0:02:49]} 10. e5 {[%clk 0:02:51]}  Nd7 {[%clk 0:02:49]} 11. Ne2 {[%clk 0:02:50]}  Rb8 {[%clk 0:02:48]} 12. c3 {[%clk 0:02:50]}  b5 {[%clk 0:02:48]} 13. d4 {[%clk 0:02:36]}  b4 {[%clk 0:02:24]} 14. f5 {[%clk 0:02:28]}  Nb6 {[%clk 0:01:43]} 15. f6 {[%clk 0:01:56]}  gxf6 {[%clk 0:01:43]} 16. exf6 {[%clk 0:01:57]}  Bxf6 {[%clk 0:01:44]} 17. Bb1 {[%clk 0:01:57]}  Ne7 {[%clk 0:01:18]} 18. dxc5 {[%clk 0:01:36]}  Nc4 {[%clk 0:01:17]} 19. Nfd4 {[%clk 0:01:33]}  Bg7 {[%clk 0:01:02]} 20. Qd3 {[%clk 0:01:33]}  Ng6 {[%clk 0:01:01]} 21. Nc6 {[%clk 0:01:33]}  Qc7 {[%clk 0:01:01]} 22. Nxb8 {[%clk 0:01:33]}  Qxb8 {[%clk 0:01:02]} 23. b3 {[%clk 0:01:02]}  bxc3 {[%clk 0:01:01]} 24. Bc2 {[%clk 0:00:50]}  Nb2 {[%clk 0:01:01]} 25. Qf3 {[%clk 0:00:35]}  Qb4 {[%clk 0:01:00]} 26. Qf2 {[%clk 0:00:32]}  d4 {[%clk 0:00:58]} 27. Bxb2 {[%clk 0:00:26]}  cxb2 {[%clk 0:00:58]} 28. Rab1 {[%clk 0:00:27]}  Qd2 {[%clk 0:00:48]} 29. Ng3 {[%clk 0:00:23]}  Qxf2+ {[%clk 0:00:35]} 30. Rxf2 {[%clk 0:00:24]}  f5 {[%clk 0:00:34]} 31. Nh5 {[%clk 0:00:20]}  Be5 {[%clk 0:00:32]} 32. Bd3 {[%clk 0:00:21]}  Bb7 {[%clk 0:00:21]} 33. Rbxb2 {[%clk 0:00:20]}  a5 {[%clk 0:00:20]} 34. Bc4 {[%clk 0:00:19]}  Bd5 {[%clk 0:00:19]} 35. Bxd5 {[%clk 0:00:19]}  exd5 {[%clk 0:00:20]} 36. Rbd2 {[%clk 0:00:19]}  Rc8 {[%clk 0:00:17]} 37. Rxf5 {[%clk 0:00:19]}  Rxc5 {[%clk 0:00:18]} 38. g3 {[%clk 0:00:19]}  Rc3 {[%clk 0:00:16]} 39. Nf6+ {[%clk 0:00:20]}  Bxf6 {[%clk 0:00:16]} 40. Rxf6 {[%clk 0:00:21]}  Rxb3 {[%clk 0:00:16]} 41. Rxd4 {[%clk 0:00:21]}  Rb4 {[%clk 0:00:12]} 42. Rxb4 {[%clk 0:00:21]}  axb4 {[%clk 0:00:12]} 43. a5 {[%clk 0:00:21]}  Ne5 {[%clk 0:00:08]} 44. a6 {[%clk 0:00:21]}  Nd7 {[%clk 0:00:09]} 45. a7 {[%clk 0:00:20]} 1-0


[Site "https://www.chess.com"]

[Event "Titled Tuesday Blitz June 21 Late 2022"]
[White "Kanyamarala, Tarun"]
[Black "Oparin, Grigoriy"]
[WhiteFideId "45004714"]
[BlackFideId "24125890"]
[WhiteElo "2219"]
[BlackElo "2639"]
[Result "0-1"]
[Round "01"]
[TimeControl "180+1"]
[Date "2022.06.21"]
[WhiteClock "0:00:02"]
[BlackClock "0:00:29"]

1. f4 {[%clk 0:02:59]}  d5 {[%clk 0:02:50]} 2. Nf3 {[%clk 0:02:58]}  c5 {[%clk 0:02:51]} 3. g3 {[%clk 0:02:58]}  g6 {[%clk 0:02:51]} 4. Bg2 {[%clk 0:02:58]}  Bg7 {[%clk 0:02:52]} 5. O-O {[%clk 0:02:58]}  Nc6 {[%clk 0:02:52]} 6. d3 {[%clk 0:02:58]}  Nf6 {[%clk 0:02:52]} 7. Qe1 {[%clk 0:02:58]}  d4 {[%clk 0:02:52]} 8. Na3 {[%clk 0:02:38]}  O-O {[%clk 0:02:51]} 9. Nc4 {[%clk 0:02:38]}  Be6 {[%clk 0:02:49]} 10. Nce5 {[%clk 0:02:24]}  Nxe5 {[%clk 0:02:49]} 11. Nxe5 {[%clk 0:02:22]}  Bd5 {[%clk 0:02:49]} 12. e4 {[%clk 0:02:19]}  dxe3 {[%clk 0:02:49]} 13. Bxe3 {[%clk 0:02:19]}  Rc8 {[%clk 0:02:47]} 14. Qf2 {[%clk 0:02:02]}  b6 {[%clk 0:02:47]} 15. Rad1 {[%clk 0:01:50]}  Qc7 {[%clk 0:02:46]} 16. c4 {[%clk 0:01:41]}  Bxg2 {[%clk 0:02:46]} 17. Qxg2 {[%clk 0:01:41]}  e6 {[%clk 0:02:45]} 18. d4 {[%clk 0:01:40]}  cxd4 {[%clk 0:02:45]} 19. Bxd4 {[%clk 0:01:40]}  Rfd8 {[%clk 0:02:44]} 20. Bc3 {[%clk 0:01:32]}  Nd7 {[%clk 0:02:40]} 21. Qe2 {[%clk 0:00:58]}  Nxe5 {[%clk 0:02:34]} 22. Rxd8+ {[%clk 0:00:52]}  Rxd8 {[%clk 0:02:35]} 23. Bxe5 {[%clk 0:00:46]}  Bxe5 {[%clk 0:02:34]} 24. fxe5 {[%clk 0:00:44]}  Rd4 {[%clk 0:02:24]} 25. b3 {[%clk 0:00:39]}  Qd7 {[%clk 0:02:24]} 26. Rf2 {[%clk 0:00:25]}  h5 {[%clk 0:02:22]} 27. Qe3 {[%clk 0:00:22]}  h4 {[%clk 0:02:07]} 28. Kg2 {[%clk 0:00:19]}  hxg3 {[%clk 0:02:02]} 29. hxg3 {[%clk 0:00:19]}  Rd1 {[%clk 0:02:00]} 30. Qf3 {[%clk 0:00:17]}  Re1 {[%clk 0:01:56]} 31. Qa8+ {[%clk 0:00:16]}  Kg7 {[%clk 0:01:56]} 32. Qf3 {[%clk 0:00:17]}  a5 {[%clk 0:01:21]} 33. Re2 {[%clk 0:00:12]}  Ra1 {[%clk 0:00:54]} 34. Qf6+ {[%clk 0:00:11]}  Kg8 {[%clk 0:00:53]} 35. Qf3 {[%clk 0:00:10]}  Rd1 {[%clk 0:00:50]} 36. Rf2 {[%clk 0:00:09]}  Rd3 {[%clk 0:00:49]} 37. Qa8+ {[%clk 0:00:08]}  Kg7 {[%clk 0:00:49]} 38. Qe4 {[%clk 0:00:09]}  Rd1 {[%clk 0:00:44]} 39. Qf3 {[%clk 0:00:08]}  Re1 {[%clk 0:00:44]} 40. Qf6+ {[%clk 0:00:08]}  Kg8 {[%clk 0:00:44]} 41. Qf4 {[%clk 0:00:08]}  Qb7+ {[%clk 0:00:39]} 42. Rf3 {[%clk 0:00:08]}  Re2+ {[%clk 0:00:38]} 43. Kh3 {[%clk 0:00:07]}  Rxa2 {[%clk 0:00:36]} 44. Kg4 {[%clk 0:00:05]}  Qd7 {[%clk 0:00:29]} 45. Qe4 {[%clk 0:00:04]}  Rd2 {[%clk 0:00:29]} 46. Qa8+ {[%clk 0:00:01]}  Kg7 {[%clk 0:00:29]} 47. Qe4 {[%clk 0:00:02]}  Rd4 {[%clk 0:00:29]} 0-1


[Site "https://www.chess.com"]

[Event "Titled Tuesday Blitz June 21 Late 2022"]
[White "Koellner, Ruben Gideon"]
[Black "Akrakan"]
[WhiteFideId "12993093"]
[WhiteElo "2559"]
[BlackElo "2146"]
[Result "1-0"]
[Round "01"]
[TimeControl "180+1"]
[Date "2022.06.22"]
[WhiteClock "0:01:24"]
[BlackClock "0:02:31"]

1. d4 {[%clk 0:02:54]}  d5 {[%clk 0:02:59]} 2. Nf3 {[%clk 0:02:39]}  Nf6 {[%clk 0:02:58]} 3. Bf4 {[%clk 0:02:26]}  e6 {[%clk 0:02:58]} 4. e3 {[%clk 0:02:18]}  Bd6 {[%clk 0:02:58]} 5. Ne5 {[%clk 0:02:17]}  c5 {[%clk 0:02:53]} 6. c3 {[%clk 0:02:14]}  Nc6 {[%clk 0:02:53]} 7. Nd2 {[%clk 0:02:08]}  cxd4 {[%clk 0:02:51]} 8. exd4 {[%clk 0:02:08]}  O-O {[%clk 0:02:49]} 9. Bd3 {[%clk 0:02:07]}  Qc7 {[%clk 0:02:44]} 10. Qe2 {[%clk 0:02:04]}  Bxe5 {[%clk 0:02:39]} 11. dxe5 {[%clk 0:02:01]}  Nd7 {[%clk 0:02:38]} 12. Nf3 {[%clk 0:01:59]}  Nc5 {[%clk 0:02:31]} 13. Bxh7+ {[%clk 0:01:23]}  Kxh7 {[%clk 0:02:31]} 14. Ng5+ {[%clk 0:01:24]} 1-0


[Site "https://www.chess.com"]

[Event "Titled Tuesday Blitz June 21 Late 2022"]
[White "Kravtsiv, Martyn"]
[Black "Pesotskiy, Mikhail"]
[WhiteFideId "14113147"]
[BlackFideId "34164453"]
[WhiteElo "2831"]
[BlackElo "2473"]
[Result "1-0"]
[Round "01"]
[TimeControl "180+1"]
[Date "2022.06.22"]
[WhiteClock "0:00:18"]
[BlackClock "0:00:03"]

1. e4 {[%clk 0:03:00]}  e6 {[%clk 0:02:59]} 2. d3 {[%clk 0:02:57]}  c5 {[%clk 0:02:58]} 3. g3 {[%clk 0:02:56]}  Nc6 {[%clk 0:02:59]} 4. Bg2 {[%clk 0:02:56]}  g6 {[%clk 0:03:00]} 5. f4 {[%clk 0:02:55]}  Bg7 {[%clk 0:03:00]} 6. Nf3 {[%clk 0:02:55]}  d6 {[%clk 0:03:01]} 7. O-O {[%clk 0:02:54]}  Nge7 {[%clk 0:03:02]} 8. c3 {[%clk 0:02:51]}  O-O {[%clk 0:03:02]} 9. Be3 {[%clk 0:02:51]}  b5 {[%clk 0:02:58]} 10. Nbd2 {[%clk 0:02:50]}  b4 {[%clk 0:02:58]} 11. Qc2 {[%clk 0:02:46]}  a5 {[%clk 0:02:53]} 12. Kh1 {[%clk 0:02:42]}  Ba6 {[%clk 0:02:53]} 13. c4 {[%clk 0:02:41]}  Nd4 {[%clk 0:02:40]} 14. Nxd4 {[%clk 0:02:31]}  cxd4 {[%clk 0:02:41]} 15. Bg1 {[%clk 0:02:31]}  d5 {[%clk 0:02:41]} 16. f5 {[%clk 0:02:22]}  gxf5 {[%clk 0:02:26]} 17. exd5 {[%clk 0:02:13]}  exd5 {[%clk 0:02:25]} 18. b3 {[%clk 0:02:14]}  Rc8 {[%clk 0:02:11]} 19. Rae1 {[%clk 0:02:11]}  dxc4 {[%clk 0:02:11]} 20. bxc4 {[%clk 0:02:04]}  Qd7 {[%clk 0:02:09]} 21. Nf3 {[%clk 0:02:02]}  Ng6 {[%clk 0:02:09]} 22. Qf2 {[%clk 0:01:56]}  Bb7 {[%clk 0:01:55]} 23. h4 {[%clk 0:01:39]}  f4 {[%clk 0:01:22]} 24. h5 {[%clk 0:01:38]}  Qg4 {[%clk 0:01:22]} 25. hxg6 {[%clk 0:01:08]}  fxg3 {[%clk 0:01:22]} 26. gxh7+ {[%clk 0:01:08]}  Kh8 {[%clk 0:01:22]} 27. Qe2 {[%clk 0:01:06]}  Rce8 {[%clk 0:01:01]} 28. Qxe8 {[%clk 0:01:03]}  Bxf3 {[%clk 0:00:46]} 29. Qxf8+ {[%clk 0:00:23]}  Bxf8 {[%clk 0:00:47]} 30. Bxd4+ {[%clk 0:00:23]}  Qxd4 {[%clk 0:00:25]} 31. Rxf3 {[%clk 0:00:22]}  Bc5 {[%clk 0:00:17]} 32. Bh3 {[%clk 0:00:22]}  Kxh7 {[%clk 0:00:05]} 33. Rxg3 {[%clk 0:00:19]}  Qh4 {[%clk 0:00:05]} 34. Kg2 {[%clk 0:00:19]}  Bd6 {[%clk 0:00:03]} 35. Bf5+ {[%clk 0:00:18]} 1-0


[Site "https://www.chess.com"]